fUSD/lending_fUSD_20250410
["ID","MTS","AMOUNT","RATE_DAILY","PERIOD"]
[357627899,1744243850362,-500.0,0.00038356,2]
[357627900,1744243850373,-720.17,0.00038356,2]
[357627901,1744243850383,-500.0,0.00038356,2]
[357627902,1744243850392,-500.0,0.00038356,2]
[357627903,1744243850402,-519.46947898,0.00038356,2]
[357627904,1744243850411,-500.0,0.00038356,2]
[357627905,1744243850422,-536.11108837,0.00038356,2]
[357627906,1744243850433,-500.0,0.00038356,2]
[357627907,1744243850443,-504.55382091,0.00038356,2]
[357627908,1744243850452,-509.05,0.00038356,2]
[357627909,1744243850466,-505.98,0.00038356,2]
[357627910,1744243850476,-500.0,0.00038356,2]
[357627911,1744243850485,-500.0,0.00038356,2]
[357627912,1744243850495,-590.27,0.00038356,2]
[357627913,1744243850504,-500.0,0.00038356,2]
[357627914,1744243850514,-500.0,0.00038356,2]
[357627915,1744243850523,-500.0,0.00038356,2]
[357627916,1744243850533,-500.0,0.00038356,2]
[357627917,1744243850542,-500.0,0.00038356,2]
[357627918,1744243850552,-500.0,0.00038356,2]
[357627919,1744243850561,-570.34,0.00038356,2]
[357627920,1744243850571,-901.22,0.00038356,2]
[357627921,1744243850580,-500.0,0.00038356,2]
[357627922,1744243850589,-500.0,0.00038356,2]
[357627923,1744243850599,-546.08070845,0.00038356,2]
[357627924,1744243850608,-1045.93,0.00038356,2]
[357627925,1744243850618,-528.37366445,0.00038356,2]
[357627926,1744243850627,-616.84,0.00038356,2]
[357627927,1744243850636,-500.0,0.00038356,2]
[357627928,1744243850646,-852.59,0.00038356,2]
[357627929,1744243850655,-500.0,0.00038356,2]
[357627930,1744243850664,-577.73842136,0.00038356,2]
[357627931,1744243850673,-501.44538721,0.00038356,2]
[357627932,1744243850683,-1178.74,0.00038356,2]
[357627933,1744243850692,-500.0,0.00038356,2]
[357627934,1744243850702,-500.0,0.00038356,2]
[357627935,1744243850710,-686.33,0.00038356,2]
[357627936,1744243850720,-500.0,0.00038356,2]
[357627937,1744243850729,-498.87226485,0.00038356,2]
[357627938,1744243850739,-500.0,0.00038356,2]
[357627939,1744243850748,-500.0,0.00038356,2]
[357627940,1744243850758,-500.0,0.00038356,2]
[357627941,1744243850767,-500.0,0.00038356,2]
[357627942,1744243850776,-476.8404,0.00038356,2]
[357627943,1744243850785,-500.0,0.00038356,2]
[357627944,1744243850795,-500.0,0.00038356,2]
[357627945,1744243850804,-500.0,0.00038356,2]
[357627946,1744243850813,-500.0,0.00038356,2]
[357627947,1744243850822,-500.0,0.00038356,2]
[357627948,1744243850831,-505.26017625,0.00038356,2]
[357627949,1744243850840,-500.0,0.00038356,2]
[357627950,1744243850850,-500.0,0.00038356,2]
[357627951,1744243850859,-507.13,0.00038356,2]
[357627952,1744243850868,-500.0,0.00038356,2]
[357627953,1744243850878,-867.74,0.00038356,2]
[357627954,1744243850887,-500.0,0.00038356,2]
[357627955,1744243850896,-419.55925434,0.00038356,2]
[357627956,1744243850906,-151.0,0.00038356,7]
[357627957,1744243850915,-915.14,0.00038356,2]
[357627958,1744243850925,-500.0,0.00038356,2]
[357627959,1744243850934,-1498.03,0.00038356,2]
[357627960,1744243850943,-500.0,0.00038356,2]
[357627961,1744243850952,-500.0,0.00038356,2]
[357627962,1744243850961,-151.0,0.00038356,7]
[357627963,1744243850971,-500.0,0.00038356,2]
[357627964,1744243850980,-609.86275427,0.00038356,2]
[357627965,1744243850990,-500.0,0.00038356,2]
[357627966,1744243850999,-187.98809572,0.00038356,2]
[357627967,1744243851008,-443.976767,0.00038373,5]
[357627968,1744243851017,-500.0,0.00038373,5]
[357627969,1744243851026,-777.92058837,0.00038383,2]
[357627970,1744243851035,-500.0,0.00038383,2]
[357627971,1744243851045,-500.0,0.00038411,2]
[357627972,1744243851054,-500.0,0.00038438,2]
[357627973,1744243851063,-532.69,0.00038443,2]
[357627974,1744243851073,-500.0,0.00038466,2]
[357627975,1744243851082,-822.63141498,0.00038482,2]
[357627976,1744243851091,-625.52999726,0.00038491,2]
[357627977,1744243851100,-500.0,0.00038493,2]
[357627978,1744243851112,-151.041006,0.00038498,120]
[357627979,1744243851123,-500.0,0.0003852,2]
[357627980,1744243851132,-500.0,0.00038548,2]
[357627981,1744243851141,-500.0,0.00038575,2]
[357627982,1744243851150,-10513.6075171,0.00038593,3]
[357627983,1744243851160,-509.76,0.00038597,2]
[357627984,1744243851170,-500.0,0.00038603,2]
[357627985,1744243851179,-16178.88527914,0.00038603,120]
[357627986,1744243851644,-3067.99999,0.00038603,120]
[357627987,1744243851656,-7714.11473086,0.00038603,120]
[357627988,1744243851666,-151.0,0.00038603,14]
[357627989,1744243851681,-218.707814,0.00038603,14]
[357627990,1744243851690,-151.0,0.00038603,14]
[357627991,1744243851700,-872.89554,0.00038603,14]
[357627992,1744243851710,-872.89554,0.00038603,14]
[357627993,1744243851719,-299.545268,0.00038603,14]
[357627994,1744243851901,-299.545268,0.00038603,14]
[357627995,1744243851910,-151.0,0.00038603,14]
[357627996,1744243851919,-151.0,0.00038603,14]
[357627997,1744243851928,-151.0,0.00038603,14]
[357627998,1744243851937,-151.0,0.00038603,14]
[357627999,1744243851946,-10513.6075171,0.00038619,3]
[357628000,1744243851955,-73595.2526193,0.0003862,3]
[357628001,1744243851964,-746.85,0.00038629,2]
[357628002,1744243851974,-746.85,0.00038629,2]
[357628003,1744243851983,-746.85,0.00038629,2]
[357628004,1744243851991,-500.0,0.00038629,2]
[357628005,1744243852000,-500.0,0.00038629,2]
[357628006,1744243852011,-522.08,0.00038629,2]
[357628007,1744243852020,-151.0,0.00038629,14]
[357628008,1744243852029,-151.0,0.00038629,14]
[357628009,1744243852038,-151.0,0.00038629,14]
[357628010,1744243852048,-151.0,0.00038629,14]
[357628011,1744243852057,-151.0,0.00038629,14]
[357628012,1744243852067,-151.0,0.00038629,14]
[357628013,1744243852076,-322.127338,0.00038629,14]
[357628014,1744243852085,-322.127338,0.00038629,14]
[357628015,1744243852095,-600.77,0.00038629,2]
[357628016,1744243852104,-600.77,0.00038629,2]
[357628017,1744243852115,-600.77,0.00038629,2]
[357628018,1744243852127,-625.207334,0.00038629,14]
[357628019,1744243852136,-625.207334,0.00038629,14]
[357628020,1744243852144,-2754.48926966,0.0003863,2]
[357628021,1744243852154,-276965.60016208,0.0003863,2]
[357628022,1744243852164,-500.0,0.0003863,2]
[357628023,1744243852173,-1638.394016,0.0003863,2]
[357628024,1744243852183,-151.0,0.0003863,14]
[357628025,1744243852192,-243.507825,0.0003863,2]
[357628026,1744243852204,-679.25867,0.0003863,2]
[357628027,1744243852214,-187.81898,0.0003863,14]
[357628028,1744243852223,-151.0,0.0003863,14]
[357628029,1744243852232,-286.318614,0.0003863,14]
[357628030,1744243852241,-151.0,0.0003863,14]
[357628031,1744243852254,-151.0,0.0003863,14]
[357628032,1744243852263,-151.0,0.0003863,14]
[357628033,1744243852272,-151.0,0.0003863,14]
[357628034,1744243852282,-151.0,0.0003863,14]
[357628035,1744243852292,-151.0,0.0003863,14]
[357628036,1744243852301,-153.283671,0.0003863,2]
[357628037,1744243852311,-151.0,0.0003863,14]
[357628038,1744243852320,-225.23487,0.0003863,14]
[357628039,1744243852330,-151.0,0.0003863,14]
[357628040,1744243852339,-249.450042,0.0003863,14]
[357628041,1744243852348,-151.0,0.0003863,14]
[357628042,1744243852358,-151.0,0.0003863,14]
[357628043,1744243852367,-872.89554,0.0003863,14]
[357628044,1744243852376,-872.89554,0.0003863,14]
[357628045,1744243852386,-151.0,0.0003863,14]
[357628046,1744243852395,-299.545268,0.0003863,14]
[357628047,1744243852404,-299.545268,0.0003863,14]
[357628048,1744243852414,-500.0,0.0003863,2]
[357628049,1744243852424,-482.08120067,0.0003863,2]
[357628050,1744243852433,-151.0,0.0003863,2]
[357628051,1744243852443,-151.0,0.0003863,14]
[357628052,1744243852452,-151.0,0.0003863,14]
[357628053,1744243852462,-500.0,0.0003863,2]
[357628054,1744243852471,-500.0,0.0003863,2]
[357628055,1744243852481,-500.0,0.0003863,2]
[357628056,1744243852491,-151.0,0.0003863,14]
[357628057,1744243852500,-403.11428949,0.0003863,2]
[357628058,1744243852509,-500.0,0.0003863,2]
[357628059,1744243852519,-151.0,0.0003863,14]
[357628060,1744243852529,-500.0,0.0003863,2]
[357628061,1744243852538,-417.55765124,0.0003863,2]
[357628062,1744243852547,-500.0,0.0003863,2]
[357628063,1744243852556,-286.12421358,0.0003863,2]
[357628064,1744243852566,-532.82602935,0.0003863,2]
[357628065,1744243852576,-500.0,0.0003863,2]
[357628066,1744243852586,-500.0,0.0003863,2]
[357628067,1744243852595,-603.54441273,0.0003863,2]
[357628068,1744243852604,-151.0,0.0003863,14]
[357628069,1744243852614,-500.0,0.0003863,2]
[357628070,1744243852623,-500.0,0.0003863,2]
[357628071,1744243852633,-500.0,0.0003863,2]
[357628072,1744243852643,-500.0,0.0003863,2]
[357628073,1744243852652,-500.0,0.0003863,2]
[357628074,1744243852662,-500.0,0.0003863,2]
[357628075,1744243852671,-500.0,0.0003863,2]
[357628076,1744243852681,-500.0,0.0003863,2]
[357628077,1744243852691,-500.0,0.0003863,2]
[357628078,1744243852701,-535.78258481,0.0003863,2]
[357628079,1744243852710,-500.0,0.0003863,2]
[357628080,1744243852720,-540.34270582,0.0003863,2]
[357628081,1744243852730,-502.14862034,0.0003863,2]
[357628082,1744243852739,-500.0,0.0003863,2]
[357628083,1744243852749,-500.0,0.0003863,2]
[357628084,1744243852759,-500.0,0.0003863,2]
[357628085,1744243852769,-500.0,0.0003863,2]
[357628086,1744243852785,-500.0,0.0003863,2]
[357628087,1744243852803,-500.0,0.0003863,2]
[357628088,1744243852822,-500.0,0.0003863,2]
[357628089,1744243852841,-500.0,0.0003863,2]
[357628090,1744243852858,-500.0,0.0003863,2]
[357628091,1744243852874,-500.0,0.0003863,2]
[357628092,1744243852893,-500.0,0.0003863,2]
[357628093,1744243852912,-500.0,0.0003863,2]
[357628094,1744243852931,-500.0,0.0003863,2]
[357628095,1744243852950,-500.0,0.0003863,2]
[357628096,1744243852970,-284.2326429,0.0003863,2]
[357628097,1744243852987,-525.5383411,0.0003863,2]
[357628098,1744243853000,-525.78377413,0.0003863,2]
[357628099,1744243853019,-500.0,0.0003863,2]
[357628100,1744243853033,-352.10848339,0.0003863,2]
[357628101,1744243853051,-500.0,0.0003863,2]
[357628102,1744243853064,-500.0,0.0003863,2]
[357628103,1744243853081,-500.0,0.0003863,2]
[357628104,1744243853103,-500.0,0.0003863,2]
[357628105,1744243853122,-500.0,0.0003863,2]
[357628106,1744243853137,-500.0,0.0003863,2]
[357628107,1744243853152,-500.0,0.0003863,2]
[357628108,1744243853169,-512.21,0.0003863,2]
[357628109,1744243853186,-551.21,0.0003863,2]
[357628110,1744243853202,-500.0,0.0003863,2]
[357628111,1744243853218,-501.74,0.0003863,2]
[357628112,1744243853234,-500.0,0.0003863,2]
[357628113,1744243853250,-500.0,0.0003863,2]
[357628114,1744243853265,-500.0,0.0003863,2]
[357628115,1744243853281,-500.0,0.0003863,2]
[357628116,1744243853297,-590.51575378,0.0003863,2]
[357628117,1744243853312,-151.0,0.0003863,14]
[357628118,1744243853328,-500.0,0.0003863,2]
[357628119,1744243853344,-500.0,0.0003863,2]
[357628120,1744243853360,-500.0,0.0003863,2]
[357628121,1744243853375,-40.38237806,0.0003863,2]
[357628122,1744243853402,-459.61762194,0.0003863,2]
[357628123,1744243853419,-88.43237961,0.0003863,14]
[357628124,1744243853438,-62.56762039,0.0003863,14]
[357628125,1744243853455,-641.56,0.0003863,2]
[357628126,1744243853473,-165.18359861,0.0003863,2]
[357628127,1744243853490,-243.560492,0.0003863,14]
[357628128,1744243853506,-569.8,0.0003863,2]
[357628129,1744243853521,-500.0,0.0003863,2]
[357628130,1744243853538,-500.0,0.0003863,2]
[357628131,1744243853554,-571.52527456,0.0003863,2]
[357628132,1744243853571,-500.0,0.0003863,2]
[357628133,1744243853587,-500.0,0.0003863,2]
[357628134,1744243853603,-500.0,0.0003863,2]
[357628135,1744243853619,-500.0,0.0003863,2]
[357628136,1744243853635,-503.4618478,0.0003863,2]
[357628137,1744243853651,-500.0,0.0003863,2]
[357628138,1744243853667,-204.92116664,0.0003863,2]
[357628139,1744243853688,-338.65905979,0.0003863,2]
[357628140,1744243853704,-543.93201772,0.0003863,2]
[357628141,1744243853720,-500.0,0.0003863,2]
[357628142,1744243853744,-500.0,0.0003863,2]
[357628143,1744243853762,-1273.31,0.0003863,2]
[357628144,1744243853778,-594.73,0.0003863,2]
[357628145,1744243853794,-500.0,0.0003863,2]
[357628146,1744243853811,-500.0,0.0003863,2]
[357628147,1744243853827,-500.0,0.0003863,2]
[357628148,1744243853843,-297.10909163,0.0003863,2]
[357628149,1744243853863,-202.89090837,0.0003863,2]
[357628150,1744243853889,-421.25677023,0.0003863,2]
[357628151,1744243853909,-78.74322977,0.0003863,2]
[357628152,1744243853926,-500.0,0.0003863,2]
[357628153,1744243853943,-539.93287909,0.0003863,2]
[357628154,1744243853960,-500.0,0.0003863,2]
[357628155,1744243853976,-500.0,0.0003863,2]
[357628156,1744243853992,-500.0,0.0003863,2]
[357628157,1744243854010,-151.0,0.0003863,14]
[357628158,1744243854026,-500.0,0.0003863,2]
[357628159,1744243854038,-500.0,0.0003863,2]
[357628160,1744243854047,-500.0,0.0003863,2]
[357628161,1744243854057,-500.0,0.0003863,2]
[357628162,1744243854067,-500.0,0.0003863,2]
[357628163,1744243854077,-500.0,0.0003863,2]
[357628164,1744243854086,-500.0,0.0003863,2]
[357628165,1744243854096,-503.55498754,0.0003863,2]
[357628166,1744243854105,-500.0,0.0003863,2]
[357628167,1744243854116,-500.0,0.0003863,2]
[357628168,1744243854126,-500.0,0.0003863,2]
[357628169,1744243854136,-500.0,0.0003863,2]
[357628170,1744243854145,-500.0,0.0003863,2]
[357628171,1744243854158,-500.0,0.0003863,2]
[357628172,1744243854168,-1202.97,0.0003863,2]
[357628173,1744243854178,-500.0,0.0003863,2]
[357628174,1744243854189,-500.0,0.0003863,2]
[357628175,1744243854200,-632.0,0.0003863,2]
[357628176,1744243854210,-500.0,0.0003863,2]
[357628177,1744243854567,-500.0,0.0003863,2]
[357628178,1744243854600,-500.0,0.0003863,2]
[357628179,1744243854637,-500.0,0.0003863,2]
[357628180,1744243854652,-500.0,0.0003863,2]
[357628181,1744243854662,-500.0,0.0003863,2]
[357628182,1744243854672,-151.0,0.0003863,14]
[357628183,1744243854681,-522.66437211,0.0003863,2]
[357628184,1744243854691,-151.0,0.0003863,14]
[357628185,1744243854700,-151.0,0.0003863,14]
[357628186,1744243854710,-500.0,0.0003863,2]
[357628187,1744243854720,-500.0,0.0003863,2]
[357628188,1744243854730,-500.0,0.0003863,2]
[357628189,1744243854739,-151.0,0.0003863,14]
[357628190,1744243854748,-151.0,0.0003863,14]
[357628191,1744243854758,-747.87,0.0003863,2]
[357628192,1744243854767,-500.0,0.0003863,2]
[357628193,1744243854776,-500.0,0.0003863,2]
[357628194,1744243854787,-500.0,0.0003863,2]
[357628195,1744243854797,-151.0,0.0003863,14]
[357628196,1744243854807,-151.0,0.0003863,14]
[357628197,1744243854816,-297.49306554,0.0003863,2]
[357628198,1744243854831,-276.63941036,0.0003863,2]
[357628199,1744243854840,-500.0,0.0003863,2]
[357628200,1744243854850,-500.0,0.0003863,2]
[357628201,1744243854859,-500.0,0.0003863,2]
[357628202,1744243854868,-500.0,0.0003863,2]
[357628203,1744243854878,-151.0,0.0003863,14]
[357628204,1744243854887,-500.0,0.0003863,2]
[357628205,1744243854896,-500.0,0.0003863,2]
[357628206,1744243854906,-500.0,0.0003863,2]
[357628207,1744243854915,-500.0,0.0003863,2]
[357628208,1744243854925,-500.0,0.0003863,2]
[357628209,1744243854934,-1013.54,0.0003863,2]
[357628210,1744243854944,-500.0,0.0003863,2]
[357628211,1744243854954,-500.0,0.0003863,2]
[357628212,1744243854963,-500.0,0.0003863,2]
[357628213,1744243854972,-500.0,0.0003863,2]
[357628214,1744243854982,-502.41830259,0.0003863,2]
[357628215,1744243854991,-500.0,0.0003863,2]
[357628216,1744243855001,-500.0,0.0003863,2]
[357628217,1744243855010,-1028.37,0.0003863,2]
[357628218,1744243855020,-500.0,0.0003863,2]
[357628219,1744243855029,-500.0,0.0003863,2]
[357628220,1744243855039,-500.0,0.0003863,2]
[357628221,1744243855048,-500.0,0.0003863,2]
[357628222,1744243855057,-500.0,0.0003863,2]
[357628223,1744243855066,-500.0,0.0003863,2]
[357628224,1744243855076,-1032.92094,0.0003863,2]
[357628225,1744243855086,-616.294201,0.0003863,14]
[357628226,1744243855095,-616.294201,0.0003863,14]
[357628227,1744243855112,-500.0,0.0003863,2]
[357628228,1744243855126,-898.3,0.0003863,2]
[357628229,1744243855136,-500.0,0.0003863,2]
[357628230,1744243855145,-500.0,0.0003863,2]
[357628231,1744243855157,-500.0,0.0003863,2]
[357628232,1744243855169,-500.0,0.0003863,2]
[357628233,1744243855179,-500.0,0.0003863,2]
[357628234,1744243855188,-616.294201,0.0003863,14]
[357628235,1744243855198,-616.294201,0.0003863,14]
[357628236,1744243855209,-535.49,0.0003863,2]
[357628237,1744243855218,-500.0,0.0003863,2]
[357628238,1744243855228,-222.56300373,0.0003863,2]
[357628239,1744243855237,-500.0,0.0003863,2]
[357628240,1744243855247,-500.0,0.0003863,2]
[357628241,1744243855256,-279.21413891,0.0003863,2]
[357628242,1744243855265,-1179.84,0.0003863,2]
[357628243,1744243855275,-500.0,0.0003863,2]
[357628244,1744243855284,-500.0,0.0003863,2]
[357628245,1744243855294,-644.95551515,0.0003863,2]
[357628246,1744243855303,-500.0,0.0003863,2]
[357628247,1744243855313,-500.0,0.0003863,2]
[357628248,1744243855322,-500.0,0.0003863,2]
[357628249,1744243855332,-500.0,0.0003863,2]
[357628250,1744243855342,-509.2902917,0.0003863,2]
[357628251,1744243855352,-500.0,0.0003863,2]
[357628252,1744243855362,-516.0494398,0.0003863,2]
[357628253,1744243855371,-500.0,0.0003863,2]
[357628254,1744243855381,-500.0,0.0003863,2]
[357628255,1744243855390,-554.20693179,0.0003863,2]
[357628256,1744243855400,-500.0,0.0003863,2]
[357628257,1744243855409,-771.42,0.0003863,2]
[357628258,1744243855419,-500.0,0.0003863,2]
[357628259,1744243855428,-738.67,0.0003863,2]
[357628260,1744243855438,-500.0,0.0003863,2]
[357628261,1744243855448,-500.0,0.0003863,2]
[357628262,1744243855457,-500.0,0.0003863,2]
[357628263,1744243855467,-246.65979612,0.0003863,2]
[357628264,1744243855477,-500.0,0.0003863,2]
[357628265,1744243855487,-500.0,0.0003863,2]
[357628266,1744243855497,-500.0,0.0003863,2]
[357628267,1744243855506,-500.0,0.0003863,2]
[357628268,1744243855516,-500.0,0.0003863,2]
[357628269,1744243855526,-525.3386741,0.0003863,2]
[357628270,1744243855536,-500.0,0.0003863,2]
[357628271,1744243855546,-500.0,0.0003863,2]
[357628272,1744243855556,-500.0,0.0003863,2]
[357628273,1744243855566,-500.0,0.0003863,2]
[357628274,1744243855576,-538.49865891,0.0003863,2]
[357628275,1744243855585,-693.42,0.0003863,2]
[357628276,1744243855595,-531.67321752,0.0003863,2]
[357628277,1744243855604,-500.0,0.0003863,2]
[357628278,1744243855614,-538.29,0.0003863,2]
[357628279,1744243855624,-500.0,0.0003863,2]
[357628280,1744243855633,-519.26137628,0.0003863,2]
[357628281,1744243855643,-500.0,0.0003863,2]
[357628282,1744243855652,-1127.83,0.0003863,2]
[357628283,1744243855662,-500.0,0.0003863,2]
[357628284,1744243855671,-500.0,0.0003863,2]
[357628285,1744243855681,-561.09537344,0.0003863,2]
[357628286,1744243855691,-500.0,0.0003863,2]
[357628287,1744243855700,-500.0,0.0003863,2]
[357628288,1744243855710,-504.29900877,0.0003863,2]
[357628289,1744243855720,-500.0,0.0003863,2]
[357628290,1744243855729,-500.0,0.0003863,2]
[357628291,1744243855739,-1106.78,0.0003863,2]
[357628292,1744243855749,-600.66,0.0003863,2]
[357628293,1744243855758,-180.31254301,0.0003863,2]
[357628294,1744243855769,-500.0,0.0003863,2]
[357628295,1744243855779,-332.9726026,0.0003863,2]
[357628296,1744243855789,-684.29,0.0003863,2]
[357628297,1744243855799,-1151.05,0.0003863,2]
[357628298,1744243855809,-502.34792963,0.0003863,2]
[357628299,1744243855818,-500.0,0.0003863,2]
[357628300,1744243855828,-500.0,0.0003863,2]
[357628301,1744243855839,-814.9,0.0003863,2]
[357628302,1744243855848,-500.0,0.0003863,2]
[357628303,1744243855858,-1102.32,0.0003863,2]
[357628304,1744243855868,-151.0,0.0003863,14]
[357628305,1744243855878,-151.0,0.0003863,14]
[357628306,1744243855888,-500.0,0.0003863,2]
[357628307,1744243855898,-500.0,0.0003863,2]
[357628308,1744243855907,-500.0,0.0003863,2]
[357628309,1744243855918,-500.0,0.0003863,2]
[357628310,1744243855928,-500.0,0.0003863,2]
[357628311,1744243855937,-601.54,0.0003863,2]
[357628312,1744243855947,-550.19022406,0.0003863,2]
[357628313,1744243855957,-976.39,0.0003863,2]
[357628314,1744243855968,-1488.11,0.0003863,2]
[357628315,1744243855978,-764.1,0.0003863,2]
[357628316,1744243855988,-676.54,0.0003863,2]
[357628317,1744243855998,-408.69231856,0.0003863,2]
[357628318,1744243856008,-500.0,0.0003863,2]
[357628319,1744243856018,-500.0,0.0003863,2]
[357628320,1744243856028,-987.07,0.0003863,2]
[357628321,1744243856038,-500.0,0.0003863,2]
[357628322,1744243856048,-517.9361172,0.0003863,2]
[357628323,1744243856058,-500.0,0.0003863,2]
[357628324,1744243856068,-500.0,0.0003863,2]
[357628325,1744243856078,-500.0,0.0003863,2]
[357628326,1744243856087,-576.10002145,0.0003863,2]
[357628327,1744243856098,-500.0,0.0003863,2]
[357628328,1744243856108,-1354.05,0.0003863,2]
[357628329,1744243856124,-500.0,0.0003863,2]
[357628330,1744243856133,-500.0,0.0003863,2]
[357628331,1744243856143,-536.84671727,0.0003863,2]
[357628332,1744243856153,-500.0,0.0003863,2]
[357628333,1744243856164,-500.0,0.0003863,2]
[357628334,1744243856174,-500.0,0.0003863,2]
[357628335,1744243856184,-502.95658298,0.0003863,2]
[357628336,1744243856193,-600.91,0.0003863,2]
[357628337,1744243856204,-500.0,0.0003863,2]
[357628338,1744243856214,-628.38314665,0.0003863,2]
[357628339,1744243856224,-500.0,0.0003863,2]
[357628340,1744243856234,-1048.37,0.0003863,2]
[357628341,1744243856243,-779.34,0.0003863,2]
[357628342,1744243856254,-541.41499735,0.0003863,2]
[357628343,1744243856263,-526.88812224,0.0003863,2]
[357628344,1744243856273,-151.0,0.0003863,14]
[357628345,1744243856283,-242.74052,0.0003863,14]
[357628346,1744243856293,-500.0,0.0003863,2]
[357628347,1744243856302,-500.0,0.0003863,2]
[357628348,1744243856312,-500.0,0.0003863,2]
[357628349,1744243856322,-531.08699972,0.0003863,2]
[357628350,1744243856332,-673.96,0.0003863,2]
[357628351,1744243856343,-500.0,0.0003863,2]
[357628352,1744243856353,-500.0,0.0003863,2]
[357628353,1744243856362,-327.02843238,0.0003863,2]
[357628354,1744243856372,-734.44,0.0003863,2]
[357628355,1744243856382,-500.0,0.0003863,2]
[357628356,1744243856391,-500.0,0.0003863,2]
[357628357,1744243856401,-669.2,0.0003863,2]
[357628358,1744243856411,-500.0,0.0003863,2]
[357628359,1744243856421,-500.0,0.0003863,2]
[357628360,1744243856431,-534.70091494,0.0003863,2]
[357628361,1744243856440,-500.0,0.0003863,2]
[357628362,1744243856451,-536.10865107,0.0003863,2]
[357628363,1744243856461,-500.0,0.0003863,2]
[357628364,1744243856470,-151.0,0.0003863,14]
[357628365,1744243856480,-506.28078346,0.0003863,2]
[357628366,1744243856490,-151.0,0.0003863,14]
[357628367,1744243856500,-500.0,0.0003863,2]
[357628368,1744243856510,-398.894569,0.0003863,14]
[357628369,1744243856520,-500.0,0.0003863,2]
[357628370,1744243856531,-500.0,0.0003863,2]
[357628371,1744243856540,-398.894569,0.0003863,14]
[357628372,1744243856550,-500.0,0.0003863,2]
[357628373,1744243856560,-500.0,0.0003863,2]
[357628374,1744243856570,-151.0,0.0003863,14]
[357628375,1744243856579,-151.0,0.0003863,14]
[357628376,1744243856589,-151.0,0.0003863,14]
[357628377,1744243856598,-151.0,0.0003863,14]
[357628378,1744243856608,-500.0,0.0003863,2]
[357628379,1744243856618,-398.894569,0.0003863,14]
[357628380,1744243856628,-531.31027916,0.0003863,2]
[357628381,1744243856638,-398.894569,0.0003863,14]
[357628382,1744243856648,-500.0,0.0003863,2]
[357628383,1744243856658,-151.0,0.0003863,14]
[357628384,1744243856668,-151.0,0.0003863,14]
[357628385,1744243856678,-500.0,0.0003863,2]
[357628386,1744243856687,-500.0,0.0003863,2]
[357628387,1744243856697,-510.62227836,0.0003863,2]
[357628388,1744243856707,-500.0,0.0003863,2]
[357628389,1744243856716,-500.0,0.0003863,2]
[357628390,1744243856726,-500.0,0.0003863,2]
[357628391,1744243856736,-557.52,0.0003863,2]
[357628392,1744243856745,-500.0,0.0003863,2]
[357628393,1744243856755,-500.0,0.0003863,2]
[357628394,1744243856765,-500.0,0.0003863,2]
[357628395,1744243856775,-500.0,0.0003863,2]
[357628396,1744243856785,-890.15,0.0003863,2]
[357628397,1744243856794,-500.0,0.0003863,2]
[357628398,1744243856804,-500.0,0.0003863,2]